[Event "Early-Titled-Tuesday-Blitz-January-23-2024"]
[Site "Chess.com"]
[Date "2024.01.23"]
[Round "8"]
[White "Mistango"]
[Black "Yeritsyaan"]
[Result "0-1"]
[WhiteElo "2518"]
[BlackElo "2655"]
[TimeControl "180+1"]
[EndTime "9:28:24 PST"]
[Termination "Yeritsyaan won by resignation"]

1. e4 {[%clk 0:03:00.9]} 1... e6 {[%clk 0:02:59.6]} 2. d4 {[%clk 0:03:00.6]}
2... d5 {[%clk 0:02:59]} 3. Nc3 {[%clk 0:03:01.2]} 3... a6 {[%clk 0:02:57]} 4.
Bd3 {[%clk 0:02:49.3]} 4... c5 {[%clk 0:02:54.3]} 5. Nf3 {[%clk 0:02:46.9]} 5...
cxd4 {[%clk 0:02:52.7]} 6. Nxd4 {[%clk 0:02:46.5]} 6... e5 {[%clk 0:02:53.3]} 7.
Nb3 {[%clk 0:02:37.2]} 7... d4 {[%clk 0:02:51.9]} 8. Nd5 {[%clk 0:02:37.1]} 8...
Be6 {[%clk 0:02:44.5]} 9. O-O {[%clk 0:02:33.8]} 9... Nf6 {[%clk 0:02:43.1]} 10.
Bg5 {[%clk 0:02:31.4]} 10... Bxd5 {[%clk 0:02:37.3]} 11. exd5 {[%clk 0:02:31.5]}
11... Qxd5 {[%clk 0:02:37.9]} 12. Re1 {[%clk 0:02:31.8]} 12... Nbd7 {[%clk
0:02:35.8]} 13. f4 {[%clk 0:02:07]} 13... e4 {[%clk 0:02:13.6]} 14. Qf3 {[%clk
0:02:02.6]} 14... e3 {[%clk 0:01:59.3]} 15. Qxd5 {[%clk 0:02:01.6]} 15... Nxd5
{[%clk 0:02:00.2]} 16. Nxd4 {[%clk 0:02:02]} 16... Bc5 {[%clk 0:01:45]} 17. c3
{[%clk 0:01:44.5]} 17... h6 {[%clk 0:01:36.5]} 18. Bh4 {[%clk 0:01:43.5]} 18...
O-O {[%clk 0:01:32.8]} 19. Bg3 {[%clk 0:01:31.3]} 19... Rfe8 {[%clk 0:01:30.2]}
20. Re2 {[%clk 0:01:29]} 20... N7f6 {[%clk 0:01:25.8]} 21. Rae1 {[%clk
0:01:27.3]} 21... Nh5 {[%clk 0:01:24.4]} 22. Rf1 {[%clk 0:01:22.2]} 22... Bxd4
{[%clk 0:01:18.3]} 23. cxd4 {[%clk 0:01:21.2]} 23... Rad8 {[%clk 0:01:18.4]} 24.
Bc4 {[%clk 0:00:52.2]} 24... Nb6 {[%clk 0:01:03.3]} 25. Bb3 {[%clk 0:00:37.1]}
25... Rxd4 {[%clk 0:01:02.1]} 26. Rfe1 {[%clk 0:00:33.4]} 26... Nxf4 {[%clk
0:00:53.7]} 27. Bxf4 {[%clk 0:00:33.1]} 27... Rxf4 {[%clk 0:00:54.6]} 28. Rxe3
{[%clk 0:00:33.5]} 28... Rxe3 {[%clk 0:00:55.4]} 29. Rxe3 {[%clk 0:00:34.3]}
29... Kf8 {[%clk 0:00:54.3]} 30. Rc3 {[%clk 0:00:32.7]} 30... Re4 {[%clk
0:00:49.1]} 31. Rf3 {[%clk 0:00:18.6]} 31... Re7 {[%clk 0:00:48.3]} 32. Kf2
{[%clk 0:00:14.5]} 32... Nd7 {[%clk 0:00:44.2]} 33. Rc3 {[%clk 0:00:13.9]} 33...
Nb6 {[%clk 0:00:39.2]} 34. a4 {[%clk 0:00:08.7]} 34... Re5 {[%clk 0:00:25]} 35.
Rc7 {[%clk 0:00:07.9]} 35... Re7 {[%clk 0:00:25]} 36. Rc3 {[%clk 0:00:08.6]}
36... Rd7 {[%clk 0:00:11.8]} 37. a5 {[%clk 0:00:07.5]} 37... Nd5 {[%clk
0:00:12.5]} 38. Rc5 {[%clk 0:00:04.8]} 38... Nf6 {[%clk 0:00:12.1]} 39. Rc8+
{[%clk 0:00:04.5]} 39... Ke7 {[%clk 0:00:12.8]} 40. Rc5 {[%clk 0:00:05.1]} 40...
Ne4+ {[%clk 0:00:12.5]} 41. Ke3 {[%clk 0:00:05.8]} 41... Nxc5 {[%clk 0:00:13.4]}
42. Bc2 {[%clk 0:00:06.3]} 42... Ne6 {[%clk 0:00:13.3]} 43. Be4 {[%clk
0:00:06.5]} 43... Nd4 {[%clk 0:00:12.7]} 44. b4 {[%clk 0:00:05.6]} 44... Nc6
{[%clk 0:00:13.1]} 0-1

[Event "Early-Titled-Tuesday-Blitz-January-23-2024"]
[Site "Chess.com"]
[Date "2024.01.23"]
[Round "8"]
[White "Zhigalko_Sergei"]
[Black "Mops_2004"]
[Result "1-0"]
[WhiteElo "2978"]
[BlackElo "2853"]
[TimeControl "180+1"]
[EndTime "9:28:27 PST"]
[Termination "Zhigalko_Sergei won on time"]

1. e4 {[%clk 0:03:00.9]} 1... c6 {[%clk 0:03:00.2]} 2. d4 {[%clk 0:02:56.2]}
2... d5 {[%clk 0:03:00.2]} 3. e5 {[%clk 0:02:56.3]} 3... Bf5 {[%clk 0:03:00.1]}
4. Nf3 {[%clk 0:02:56.7]} 4... e6 {[%clk 0:03:00]} 5. Be2 {[%clk 0:02:57]} 5...
Nd7 {[%clk 0:03:00.1]} 6. O-O {[%clk 0:02:57.4]} 6... a5 {[%clk 0:03:00.3]} 7.
Nbd2 {[%clk 0:02:55.4]} 7... a4 {[%clk 0:03:00.1]} 8. Re1 {[%clk 0:02:55.8]}
8... a3 {[%clk 0:02:53.2]} 9. c4 {[%clk 0:02:48.4]} 9... h6 {[%clk 0:02:44.8]}
10. c5 {[%clk 0:02:37.9]} 10... axb2 {[%clk 0:02:43.7]} 11. Bxb2 {[%clk
0:02:38.8]} 11... b6 {[%clk 0:02:37.9]} 12. cxb6 {[%clk 0:02:35]} 12... Qxb6
{[%clk 0:02:38]} 13. Bc3 {[%clk 0:02:27.2]} 13... c5 {[%clk 0:02:25.9]} 14. a4
{[%clk 0:01:17]} 14... c4 {[%clk 0:02:15.1]} 15. a5 {[%clk 0:01:17.4]} 15... Qc7
{[%clk 0:02:14.8]} 16. Nxc4 {[%clk 0:00:55.6]} 16... dxc4 {[%clk 0:02:13.9]} 17.
d5 {[%clk 0:00:56.5]} 17... Bc5 {[%clk 0:01:48.9]} 18. d6 {[%clk 0:00:54.1]}
18... Qc8 {[%clk 0:01:42.8]} 19. Nd4 {[%clk 0:00:52]} 19... Bxd4 {[%clk
0:01:36.8]} 20. Qxd4 {[%clk 0:00:50.6]} 20... h5 {[%clk 0:01:35.9]} 21. Bxc4
{[%clk 0:00:35]} 21... Nh6 {[%clk 0:01:34.6]} 22. a6 {[%clk 0:00:35.4]} 22...
O-O {[%clk 0:01:34]} 23. a7 {[%clk 0:00:34]} 23... Nb6 {[%clk 0:01:19.1]} 24.
Be2 {[%clk 0:00:29]} 24... Nd5 {[%clk 0:01:15.7]} 25. Bd2 {[%clk 0:00:28.3]}
25... Bg6 {[%clk 0:01:06.8]} 26. Bxh6 {[%clk 0:00:24.1]} 26... gxh6 {[%clk
0:01:07.7]} 27. Bf3 {[%clk 0:00:20.4]} 27... Qb7 {[%clk 0:01:02]} 28. Rec1
{[%clk 0:00:17.8]} 28... Rfc8 {[%clk 0:00:48.6]} 29. Rxc8+ {[%clk 0:00:16]}
29... Rxc8 {[%clk 0:00:48.8]} 30. h3 {[%clk 0:00:11]} 30... Ra8 {[%clk
0:00:44.8]} 31. Qc5 {[%clk 0:00:10.4]} 31... Qb2 {[%clk 0:00:38.2]} 32. Ra6
{[%clk 0:00:04.3]} 32... Bd3 {[%clk 0:00:20.1]} 33. Rc6 {[%clk 0:00:03.8]} 33...
Qa1+ {[%clk 0:00:17.7]} 34. Kh2 {[%clk 0:00:03.8]} 34... Qxe5+ {[%clk
0:00:16.5]} 35. g3 {[%clk 0:00:03.3]} 35... Kh7 {[%clk 0:00:09.9]} 36. d7 {[%clk
0:00:03.2]} 36... h4 {[%clk 0:00:06.7]} 37. Rc8 {[%clk 0:00:02.4]} 37... hxg3+
{[%clk 0:00:07]} 38. fxg3 {[%clk 0:00:03.1]} 38... Qb2+ {[%clk 0:00:05.6]} 39.
Bg2 {[%clk 0:00:03.5]} 39... Be4 {[%clk 0:00:05.3]} 40. Qg1 {[%clk 0:00:03.5]}
40... Ne3 {[%clk 0:00:02.3]} 41. d8=Q {[%clk 0:00:03.6]} 41... Rxc8 {[%clk
0:00:01.5]} 42. Qxc8 {[%clk 0:00:04.2]} 42... Nxg2 {[%clk 0:00:01.9]} 43. Qb8
{[%clk 0:00:04.2]} 1-0

[Event "Early-Titled-Tuesday-Blitz-January-23-2024"]
[Site "Chess.com"]
[Date "2024.01.23"]
[Round "8"]
[White "Smile2005"]
[Black "chess123456s"]
[Result "0-1"]
[WhiteElo "2398"]
[BlackElo "2544"]
[TimeControl "180+1"]
[EndTime "9:28:31 PST"]
[Termination "chess123456s won by checkmate"]

1. e4 {[%clk 0:02:55.4]} 1... e5 {[%clk 0:02:56.2]} 2. Nf3 {[%clk 0:02:54.9]}
2... Nc6 {[%clk 0:02:55.6]} 3. Nc3 {[%clk 0:02:55]} 3... Nf6 {[%clk 0:02:54.7]}
4. Bb5 {[%clk 0:02:55.1]} 4... Bd6 {[%clk 0:02:52.4]} 5. O-O {[%clk 0:02:45.8]}
5... O-O {[%clk 0:02:51.3]} 6. d3 {[%clk 0:01:52.7]} 6... h6 {[%clk 0:02:49.3]}
7. a3 {[%clk 0:01:47.2]} 7... Re8 {[%clk 0:02:48.3]} 8. Bxc6 {[%clk 0:01:44.3]}
8... dxc6 {[%clk 0:02:48.2]} 9. h3 {[%clk 0:01:43.1]} 9... Be6 {[%clk
0:02:47.9]} 10. Nh2 {[%clk 0:01:41.1]} 10... Nd7 {[%clk 0:02:43]} 11. f4 {[%clk
0:01:40.8]} 11... exf4 {[%clk 0:02:42.1]} 12. Bxf4 {[%clk 0:01:41.4]} 12... Bxf4
{[%clk 0:02:40.3]} 13. Rxf4 {[%clk 0:01:41.5]} 13... Ne5 {[%clk 0:02:41.2]} 14.
Rf2 {[%clk 0:01:32.2]} 14... c5 {[%clk 0:02:39.1]} 15. Nf3 {[%clk 0:01:31.3]}
15... Ng6 {[%clk 0:02:37]} 16. Qd2 {[%clk 0:01:26.7]} 16... c6 {[%clk
0:02:32.9]} 17. Raf1 {[%clk 0:01:25.7]} 17... Qc7 {[%clk 0:02:33.3]} 18. Ne2
{[%clk 0:01:24.5]} 18... Rad8 {[%clk 0:02:32.9]} 19. Qc3 {[%clk 0:01:21.6]}
19... b6 {[%clk 0:02:30.2]} 20. Nd2 {[%clk 0:01:18.6]} 20... Qe5 {[%clk
0:02:26.5]} 21. Qxe5 {[%clk 0:01:17.5]} 21... Nxe5 {[%clk 0:02:27.4]} 22. Nf4
{[%clk 0:01:17.4]} 22... Bc8 {[%clk 0:02:26.1]} 23. Nf3 {[%clk 0:01:16.3]} 23...
Nd7 {[%clk 0:02:22.1]} 24. g4 {[%clk 0:01:05.2]} 24... Ba6 {[%clk 0:02:22.3]}
25. Nh5 {[%clk 0:00:56.9]} 25... c4 {[%clk 0:02:21.4]} 26. dxc4 {[%clk
0:00:39.4]} 26... Bxc4 {[%clk 0:02:18]} 27. Re1 {[%clk 0:00:33.5]} 27... Nc5
{[%clk 0:02:18.6]} 28. e5 {[%clk 0:00:31.6]} 28... Bd5 {[%clk 0:02:18.3]} 29.
Nh4 {[%clk 0:00:29.7]} 29... Ne4 {[%clk 0:02:17.3]} 30. Rfe2 {[%clk 0:00:12.8]}
30... Ng5 {[%clk 0:02:12.1]} 31. Kh2 {[%clk 0:00:12.2]} 31... Bc4 {[%clk
0:02:10.9]} 32. Rf2 {[%clk 0:00:10.2]} 32... Rd5 {[%clk 0:02:08.3]} 33. Nf5
{[%clk 0:00:07.9]} 33... Rdxe5 {[%clk 0:02:03.5]} 34. Rxe5 {[%clk 0:00:07.7]}
34... Rxe5 {[%clk 0:02:04.4]} 35. Nhxg7 {[%clk 0:00:07.7]} 35... Re1 {[%clk
0:01:59.4]} 36. Nh5 {[%clk 0:00:05.1]} 36... Ne4 {[%clk 0:01:53.7]} 37. Nxh6+
{[%clk 0:00:02.4]} 37... Kh7 {[%clk 0:01:53.5]} 38. Nf6+ {[%clk 0:00:02.1]}
38... Kxh6 {[%clk 0:01:52.2]} 39. Nxe4 {[%clk 0:00:02.6]} 39... Rxe4 {[%clk
0:01:53.1]} 40. Rf6+ {[%clk 0:00:02.8]} 40... Kg7 {[%clk 0:01:48.6]} 41. Rxc6
{[%clk 0:00:03.7]} 41... Re2+ {[%clk 0:01:48.5]} 42. Kg3 {[%clk 0:00:04.2]}
42... Rxc2 {[%clk 0:01:49.2]} 43. b4 {[%clk 0:00:04.4]} 43... Rg2+ {[%clk
0:01:47.9]} 44. Kxg2 {[%clk 0:00:03.8]} 44... Bd5+ {[%clk 0:01:48.2]} 45. Kg3
{[%clk 0:00:04.3]} 45... Bxc6 {[%clk 0:01:49.1]} 46. Kf4 {[%clk 0:00:05.2]}
46... Kf6 {[%clk 0:01:49.5]} 47. h4 {[%clk 0:00:06.1]} 47... Kg6 {[%clk
0:01:49.9]} 48. Ke5 {[%clk 0:00:05.5]} 48... Bf3 {[%clk 0:01:48.8]} 49. Kf4
{[%clk 0:00:04.5]} 49... Bd1 {[%clk 0:01:48.7]} 50. Kg3 {[%clk 0:00:04.7]} 50...
b5 {[%clk 0:01:47.4]} 51. Kf4 {[%clk 0:00:05]} 51... Bc2 {[%clk 0:01:46.9]} 52.
Kg3 {[%clk 0:00:04.9]} 52... f5 {[%clk 0:01:46.3]} 53. gxf5+ {[%clk 0:00:04.4]}
53... Kxf5 {[%clk 0:01:47.2]} 54. Kf3 {[%clk 0:00:04.2]} 54... Bd1+ {[%clk
0:01:45.4]} 55. Ke3 {[%clk 0:00:04.2]} 55... Kg4 {[%clk 0:01:44.4]} 56. Kd4
{[%clk 0:00:04.5]} 56... Kxh4 {[%clk 0:01:44.9]} 57. Kc5 {[%clk 0:00:04.6]}
57... Be2 {[%clk 0:01:45.3]} 58. Kc6 {[%clk 0:00:04.9]} 58... Kg4 {[%clk
0:01:44.3]} 59. Kb7 {[%clk 0:00:05.2]} 59... Bd1 {[%clk 0:01:42.1]} 60. Kxa7
{[%clk 0:00:05.2]} 60... Ba4 {[%clk 0:01:43]} 61. Kb6 {[%clk 0:00:05.1]} 61...
Kf4 {[%clk 0:01:43.9]} 62. Kc5 {[%clk 0:00:05.3]} 62... Ke4 {[%clk 0:01:44.8]}
63. Kd6 {[%clk 0:00:04.4]} 63... Kd3 {[%clk 0:01:45.7]} 64. Ke5 {[%clk 0:00:04]}
64... Kc3 {[%clk 0:01:46.6]} 65. Ke4 {[%clk 0:00:04]} 65... Kb3 {[%clk
0:01:47.5]} 66. Kd3 {[%clk 0:00:04.4]} 66... Kxa3 {[%clk 0:01:46.2]} 67. Kc3
{[%clk 0:00:04.2]} 67... Bb3 {[%clk 0:01:46.9]} 68. Kd2 {[%clk 0:00:04.5]} 68...
Kxb4 {[%clk 0:01:47.8]} 69. Kc1 {[%clk 0:00:04.6]} 69... Kc3 {[%clk 0:01:48.7]}
70. Kb1 {[%clk 0:00:04.7]} 70... Bc4 {[%clk 0:01:49.6]} 71. Ka1 {[%clk 0:00:05]}
71... b4 {[%clk 0:01:50.5]} 72. Kb1 {[%clk 0:00:05.9]} 72... b3 {[%clk
0:01:51.4]} 73. Kc1 {[%clk 0:00:05.8]} 73... Bd3 {[%clk 0:01:51.1]} 74. Kd1
{[%clk 0:00:05.5]} 74... b2 {[%clk 0:01:52]} 75. Ke1 {[%clk 0:00:06.3]} 75...
b1=Q+ {[%clk 0:01:52.9]} 76. Kf2 {[%clk 0:00:06.7]} 76... Qf1+ {[%clk
0:01:53.8]} 77. Kg3 {[%clk 0:00:07.6]} 77... Qe2 {[%clk 0:01:54.7]} 78. Kh4
{[%clk 0:00:08.4]} 78... Qg2 {[%clk 0:01:54.8]} 79. Kh5 {[%clk 0:00:08.4]} 79...
Be2+ {[%clk 0:01:55.2]} 80. Kh4 {[%clk 0:00:09.3]} 80... Qg4# {[%clk 0:01:54.9]}
0-1

[Event "Early-Titled-Tuesday-Blitz-January-23-2024"]
[Site "Chess.com"]
[Date "2024.01.23"]
[Round "8"]
[White "Alexchess1984"]
[Black "Indianlad"]
[Result "1-0"]
[WhiteElo "2688"]
[BlackElo "2964"]
[TimeControl "180+1"]
[EndTime "9:28:32 PST"]
[Termination "Alexchess1984 won by checkmate"]

1. e4 {[%clk 0:02:55.7]} 1... e6 {[%clk 0:02:57]} 2. d4 {[%clk 0:02:54.7]} 2...
d5 {[%clk 0:02:57.9]} 3. e5 {[%clk 0:02:53.3]} 3... f6 {[%clk 0:02:53.9]} 4. Nf3
{[%clk 0:02:47.4]} 4... Bd7 {[%clk 0:02:52.2]} 5. c3 {[%clk 0:02:45.4]} 5... c5
{[%clk 0:02:52.4]} 6. Be2 {[%clk 0:02:36.7]} 6... Nc6 {[%clk 0:02:51.2]} 7. O-O
{[%clk 0:02:36.3]} 7... fxe5 {[%clk 0:02:47.2]} 8. Nxe5 {[%clk 0:02:36.2]} 8...
Nxe5 {[%clk 0:02:44.2]} 9. dxe5 {[%clk 0:02:35.3]} 9... Qc7 {[%clk 0:02:44.3]}
10. Re1 {[%clk 0:02:34]} 10... O-O-O {[%clk 0:02:42.8]} 11. Bf1 {[%clk
0:02:31.4]} 11... Nh6 {[%clk 0:02:42.5]} 12. a4 {[%clk 0:02:30.1]} 12... Nf7
{[%clk 0:02:42]} 13. Na3 {[%clk 0:02:07.8]} 13... a6 {[%clk 0:02:41.9]} 14. b4
{[%clk 0:01:48]} 14... Kb8 {[%clk 0:02:22.7]} 15. Qf3 {[%clk 0:01:30.6]} 15...
Be8 {[%clk 0:02:16.1]} 16. b5 {[%clk 0:01:10.6]} 16... a5 {[%clk 0:02:09.8]} 17.
b6 {[%clk 0:01:07.5]} 17... Qxb6 {[%clk 0:02:01.1]} 18. Rb1 {[%clk 0:01:07.5]}
18... Qc7 {[%clk 0:02:01.7]} 19. Nb5 {[%clk 0:01:07.2]} 19... Qe7 {[%clk
0:01:46]} 20. Qg3 {[%clk 0:00:51]} 20... h5 {[%clk 0:01:40.4]} 21. Bf4 {[%clk
0:00:39.4]} 21... g5 {[%clk 0:01:37.3]} 22. Bd2 {[%clk 0:00:38.2]} 22... h4
{[%clk 0:01:31.5]} 23. Qe3 {[%clk 0:00:31.4]} 23... Bc6 {[%clk 0:01:29.2]} 24.
c4 {[%clk 0:00:26.3]} 24... dxc4 {[%clk 0:01:21.8]} 25. Bxa5 {[%clk 0:00:25.2]}
25... h3 {[%clk 0:01:21.9]} 26. Bc7+ {[%clk 0:00:22.3]} 26... Qxc7 {[%clk
0:01:19.4]} 27. Nxc7 {[%clk 0:00:22.1]} 27... Kxc7 {[%clk 0:01:20.2]} 28. a5
{[%clk 0:00:18.6]} 28... Rd4 {[%clk 0:01:04.5]} 29. a6 {[%clk 0:00:16]} 29...
hxg2 {[%clk 0:01:02.2]} 30. Bxg2 {[%clk 0:00:15.7]} 30... Rg4 {[%clk 0:01:02.3]}
31. Rxb7+ {[%clk 0:00:14.9]} 31... Kc8 {[%clk 0:00:59.2]} 32. f3 {[%clk
0:00:14]} 32... Rxg2+ {[%clk 0:00:52.8]} 33. Kxg2 {[%clk 0:00:13.7]} 33... Bxb7
{[%clk 0:00:52.3]} 34. axb7+ {[%clk 0:00:14.6]} 34... Kxb7 {[%clk 0:00:52.9]}
35. Qe4+ {[%clk 0:00:15.2]} 35... Kc7 {[%clk 0:00:53]} 36. Rb1 {[%clk
0:00:15.5]} 36... Nd8 {[%clk 0:00:52.8]} 37. Qxc4 {[%clk 0:00:15]} 37... Rh4
{[%clk 0:00:50.8]} 38. Qa6 {[%clk 0:00:15.2]} 38... Rb4 {[%clk 0:00:50.9]} 39.
Qa7+ {[%clk 0:00:13.9]} 39... Nb7 {[%clk 0:00:51.4]} 40. Rd1 {[%clk 0:00:13.4]}
40... Be7 {[%clk 0:00:47.4]} 41. Qa6 {[%clk 0:00:12.7]} 41... Rb6 {[%clk
0:00:45.9]} 42. Qd3 {[%clk 0:00:12.2]} 42... Bd8 {[%clk 0:00:40.5]} 43. Qh7+
{[%clk 0:00:11.9]} 43... Kb8 {[%clk 0:00:39]} 44. Qd7 {[%clk 0:00:11.8]} 44...
c4 {[%clk 0:00:31.6]} 45. Rd6 {[%clk 0:00:08.8]} 45... Rb2+ {[%clk 0:00:27.4]}
46. Kg3 {[%clk 0:00:08.8]} 46... Bc7 {[%clk 0:00:24.6]} 47. Rc6 {[%clk
0:00:08.7]} 47... Bxe5+ {[%clk 0:00:24.4]} 48. Kg4 {[%clk 0:00:09.4]} 48... c3
{[%clk 0:00:21.6]} 49. Rc8+ {[%clk 0:00:07.5]} 49... Ka7 {[%clk 0:00:21.8]} 50.
Qa4+ {[%clk 0:00:08.2]} 50... Kb6 {[%clk 0:00:22.5]} 51. Rc6# {[%clk 0:00:09]}
1-0

[Event "Early-Titled-Tuesday-Blitz-January-23-2024"]
[Site "Chess.com"]
[Date "2024.01.23"]
[Round "8"]
[White "emeli_chess"]
[Black "Sadykov_Ramil"]
[Result "1/2-1/2"]
[WhiteElo "2451"]
[BlackElo "2607"]
[TimeControl "180+1"]
[EndTime "9:28:36 PST"]
[Termination "Game drawn by repetition"]

1. d4 {[%clk 0:03:00.9]} 1... d6 {[%clk 0:02:51.9]} 2. e4 {[%clk 0:03:00.3]}
2... Nf6 {[%clk 0:02:46.3]} 3. Bd3 {[%clk 0:02:59.8]} 3... e5 {[%clk 0:02:40.1]}
4. d5 {[%clk 0:02:59.8]} 4... g6 {[%clk 0:02:38.4]} 5. c4 {[%clk 0:02:58.3]}
5... Bg7 {[%clk 0:02:38.7]} 6. Nc3 {[%clk 0:02:58.2]} 6... O-O {[%clk
0:02:39.1]} 7. f3 {[%clk 0:02:58.3]} 7... Nh5 {[%clk 0:02:36.3]} 8. Nge2 {[%clk
0:02:46.3]} 8... f5 {[%clk 0:02:33.8]} 9. Be3 {[%clk 0:02:43.2]} 9... f4 {[%clk
0:02:20.4]} 10. Bf2 {[%clk 0:02:43]} 10... g5 {[%clk 0:02:20]} 11. h3 {[%clk
0:02:42.2]} 11... Nd7 {[%clk 0:02:15.8]} 12. Qd2 {[%clk 0:02:41.8]} 12... a5
{[%clk 0:02:15.5]} 13. O-O-O {[%clk 0:02:41.5]} 13... Nhf6 {[%clk 0:02:14.5]}
14. Kb1 {[%clk 0:02:40.5]} 14... a4 {[%clk 0:02:09.6]} 15. Bc2 {[%clk
0:02:38.5]} 15... a3 {[%clk 0:02:02.1]} 16. b3 {[%clk 0:02:37.9]} 16... Ne8
{[%clk 0:01:56.2]} 17. Nc1 {[%clk 0:02:36.6]} 17... Nc5 {[%clk 0:01:54.4]} 18.
Nd3 {[%clk 0:02:34.6]} 18... b6 {[%clk 0:01:53.8]} 19. Nb5 {[%clk 0:02:33.4]}
19... Rf7 {[%clk 0:01:44.9]} 20. Rc1 {[%clk 0:02:23.7]} 20... Bd7 {[%clk
0:01:40.8]} 21. Nb4 {[%clk 0:02:14.3]} 21... Bf8 {[%clk 0:01:35.2]} 22. Nc6
{[%clk 0:02:11.6]} 22... Qf6 {[%clk 0:01:15.4]} 23. b4 {[%clk 0:02:02.5]} 23...
Na4 {[%clk 0:01:11.2]} 24. Bb3 {[%clk 0:02:01.2]} 24... Bg7 {[%clk 0:00:53.9]}
25. Qc2 {[%clk 0:01:53.3]} 25... Nb2 {[%clk 0:00:52.9]} 26. Nxa3 {[%clk
0:01:49.8]} 26... Rxa3 {[%clk 0:00:47.3]} 27. Kxb2 {[%clk 0:01:49.3]} 27... Ra8
{[%clk 0:00:46.8]} 28. a4 {[%clk 0:01:49.2]} 28... h5 {[%clk 0:00:32.1]} 29. a5
{[%clk 0:01:48.8]} 29... bxa5 {[%clk 0:00:31]} 30. bxa5 {[%clk 0:01:48.9]} 30...
Bxc6 {[%clk 0:00:21.7]} 31. dxc6 {[%clk 0:01:48.4]} 31... Rxa5 {[%clk
0:00:21.7]} 32. Ra1 {[%clk 0:01:48.6]} 32... Rxa1 {[%clk 0:00:19.6]} 33. Rxa1
{[%clk 0:01:48.1]} 33... Kh7 {[%clk 0:00:16.7]} 34. Ra8 {[%clk 0:01:46.3]} 34...
Rf8 {[%clk 0:00:16.8]} 35. c5 {[%clk 0:01:35.9]} 35... dxc5 {[%clk 0:00:12.8]}
36. Qxc5 {[%clk 0:01:33.4]} 36... Nd6 {[%clk 0:00:13]} 37. Rxf8 {[%clk
0:01:29.5]} 37... Bxf8 {[%clk 0:00:12.1]} 38. Qd5 {[%clk 0:01:29.2]} 38... Bg7
{[%clk 0:00:07.6]} 39. Qg8+ {[%clk 0:01:22.8]} 39... Kh6 {[%clk 0:00:07.6]} 40.
Bc5 {[%clk 0:01:21.8]} 40... Nb5 {[%clk 0:00:03.4]} 41. Qe6 {[%clk 0:01:06.3]}
41... Nd4 {[%clk 0:00:02.6]} 42. Qxf6+ {[%clk 0:01:02.7]} 42... Bxf6 {[%clk
0:00:03.5]} 43. Bd5 {[%clk 0:01:02.1]} 43... g4 {[%clk 0:00:02.7]} 44. hxg4
{[%clk 0:00:52.4]} 44... hxg4 {[%clk 0:00:03.6]} 45. Bxd4 {[%clk 0:00:51.5]}
45... exd4 {[%clk 0:00:04.3]} 46. Kc2 {[%clk 0:00:51.8]} 46... gxf3 {[%clk
0:00:03.7]} 47. gxf3 {[%clk 0:00:51.7]} 47... Kg5 {[%clk 0:00:04.6]} 48. Kd3
{[%clk 0:00:52]} 48... Be5 {[%clk 0:00:04.3]} 49. Be6 {[%clk 0:00:45.9]} 49...
Kh4 {[%clk 0:00:04.6]} 50. Bg4 {[%clk 0:00:45.5]} 50... Kg3 {[%clk 0:00:04.7]}
51. Bh5 {[%clk 0:00:45.5]} 51... Kf2 {[%clk 0:00:05.1]} 52. Bg4 {[%clk
0:00:45.7]} 52... Ke1 {[%clk 0:00:05.5]} 53. Bh5 {[%clk 0:00:45.4]} 53... Kd1
{[%clk 0:00:05.9]} 54. Bg4 {[%clk 0:00:45.6]} 54... Kc1 {[%clk 0:00:06.3]} 55.
Bd7 {[%clk 0:00:45.6]} 55... Kb2 {[%clk 0:00:06.5]} 56. Bg4 {[%clk 0:00:45.6]}
56... Kb3 {[%clk 0:00:07.1]} 57. Bd7 {[%clk 0:00:45.8]} 57... Kb4 {[%clk
0:00:07.5]} 58. Be8 {[%clk 0:00:46.2]} 58... Kc5 {[%clk 0:00:07.9]} 59. Bd7
{[%clk 0:00:46.3]} 59... Kb4 {[%clk 0:00:08.1]} 60. Be8 {[%clk 0:00:46.4]} 60...
Kc5 {[%clk 0:00:07.6]} 61. Bd7 {[%clk 0:00:46.6]} 61... Kd6 {[%clk 0:00:07.8]}
62. Be8 {[%clk 0:00:46.5]} 62... Ke7 {[%clk 0:00:08.7]} 63. Bd7 {[%clk
0:00:46.6]} 63... Kd6 {[%clk 0:00:09.2]} 64. Be8 {[%clk 0:00:46.5]} 64... Kc5
{[%clk 0:00:09.6]} 1/2-1/2